bitfinex-derivatives/quotes_SOLF0:USTF0_20240830
["timestamp","ask_amount","ask_price","bid_price","bid_amount"]
[1724980996723,0.04608335,140.08,140.06,0.0477851]
[1724981002827,3.5694,140.07,140.06,0.0477851]
[1724981003338,10.95,140.07,140.0,1.3765]
[1724981003537,10.95,140.06,140.0,1.3765]
[1724981004037,10.95,140.05,139.99,10.95]
[1724981004235,4.48,140.05,139.91,1.3765]
[1724981004431,0.04746877,139.99,139.97,11.00372975]
[1724981004630,0.05002285,139.99,139.97,11.00372975]
[1724981004835,0.05002285,139.99,139.98,10.95]
[1724981005039,0.05002285,139.99,139.98,13.6041]
[1724981007941,0.05002285,139.99,139.98,2.6541]
[1724981008145,0.05002285,139.99,139.98,13.6041]
[1724981011851,0.2911,140.08,140.0,10.95]
[1724981011852,15.43,140.06,140.0,10.95]
[1724981012039,10.95,140.06,140.0,10.95]
[1724981012443,43.8,140.12,140.01,10.95]
[1724981012652,11.00280316,140.08,140.05,0.052314]
[1724981013153,0.05280316,140.08,140.05,0.052314]
[1724981013348,0.05280316,140.08,140.05,11.002314]
[1724981014143,0.05280316,140.08,140.05,0.052314]
[1724981014843,0.05280316,140.08,140.07,10.95]
[1724981015046,3.5674,140.14,140.07,14.5188]
[1724981015252,3.5674,140.14,140.09,10.95]
[1724981015457,87.29869318,140.15,140.11,10.95]
[1724981015747,87.29869318,140.15,140.12,10.95]
[1724981015948,87.29869318,140.15,140.1,4.48]
[1724981016143,87.34536433,140.15,140.12,0.04529487]
[1724981017454,87.34536433,140.15,140.12,1.36699487]
[1724981020050,90.91256433,140.15,140.12,1.36699487]
[1724981021054,87.34536433,140.15,140.12,1.36699487]
[1724981021858,0.04667115,140.15,140.13,27.42]
[1724981023654,0.04667115,140.15,140.12,1.36699487]
[1724981023854,3.61387115,140.15,140.12,1.36699487]
[1724981031159,0.04667115,140.15,140.12,1.36699487]
[1724981036862,0.04667115,140.15,140.13,27.42]
[1724981038065,0.04667115,140.15,140.14,10.96]
[1724981040364,0.04667115,140.15,140.13,10.96]
[1724981040770,0.04667115,140.15,140.12,0.04529487]
[1724981041072,3.61387115,140.15,140.12,0.04529487]
[1724981041265,0.04667115,140.15,140.12,0.04529487]
[1724981042777,0.04667115,140.15,140.13,10.96]
[1724981044471,0.04667115,140.15,140.14,10.96]
[1724981046771,3.59400374,140.22,140.14,14.5273]
[1724981046983,4.5,140.22,140.16,10.96]
[1724981047168,3.50731958,140.22,140.16,10.96]
[1724981047479,8.00731958,140.22,140.16,10.96]
[1724981047974,0.04950687,140.2,140.18,0.04738845]
[1724981048378,3.61550687,140.2,140.18,0.04738845]
[1724981051076,0.04950687,140.2,140.18,11.00738845]
[1724981051277,0.04950687,140.2,140.19,10.96]
[1724981051979,0.04950687,140.2,140.18,11.00738845]
[1724981052576,3.61540687,140.2,140.18,0.04738845]
[1724981055585,3.566,140.19,140.18,0.04738845]
[1724981057183,3.5667,140.17,140.13,12.3219]
[1724981058191,0.05088501,140.16,140.14,0.05173599]
[1724981058991,3.61778501,140.16,140.14,0.05173599]
[1724981065094,0.3425,140.23,140.15,10.96]
[1724981065297,0.4641,140.24,140.12,43.84]
[1724981065298,0.4641,140.24,140.17,10.96]
[1724981065497,4.9241,140.24,140.17,10.96]
[1724981065702,4.46,140.23,140.17,10.96]
[1724981065895,14.4915378,140.25,140.17,10.96]
[1724981066095,0.04832733,140.22,140.2,11.01225999]
[1724981066298,0.05408929,140.22,140.21,10.96]
[1724981066493,0.05408929,140.22,140.2,0.04877416]
[1724981067105,3.61938929,140.22,140.2,0.04877416]
[1724981068304,3.5655,140.21,140.2,0.04877416]
[1724981071205,8.0255,140.21,140.2,0.04877416]
[1724981071596,3.5655,140.21,140.2,0.04877416]
[1724981071800,8.0255,140.21,140.2,0.04877416]
[1724981073007,3.5655,140.21,140.2,0.04877416]
[1724981073310,31.85,140.21,140.12,33.1483]
[1724981073502,4.46,140.2,140.12,33.1483]
[1724981074008,4.46,140.2,140.12,36.7161]
[1724981074208,0.05284907,140.17,140.15,0.05152134]
[1724981075110,3.61934907,140.17,140.15,0.05152134]
[1724981076118,0.05284907,140.17,140.15,0.05152134]
[1724981077011,3.61934907,140.17,140.15,0.05152134]
[1724981078509,3.5668,140.16,140.15,0.05152134]
[1724981080806,3.61944907,140.17,140.15,0.05152134]
[1724981081411,3.5668,140.16,140.15,0.05152134]
[1724981085107,3.61944907,140.17,140.15,0.05152134]
[1724981087514,0.05284907,140.17,140.15,0.05152134]
[1724981088213,0.05284907,140.17,140.15,11.01152134]
[1724981090404,3.61944907,140.17,140.15,0.05152134]
[1724981091010,3.5668,140.16,140.15,0.05152134]
[1724981095313,3.5678,140.12,140.07,10.96]
[1724981095512,4.46,140.15,140.1,10.96]
[1724981095706,3.63537695,140.18,140.13,10.96]
[1724981096011,10.96,140.19,140.13,10.96]
[1724981096217,0.04956458,140.17,140.15,0.05177029]
[1724981097015,0.04956458,140.17,140.15,11.01177029]
[1724981097708,3.5668,140.16,140.15,11.01177029]
[1724981098824,3.5668,140.16,140.15,0.05177029]
[1724981100411,0.04956458,140.17,140.15,0.05177029]
[1724981100817,0.04956458,140.17,140.16,10.96]
[1724981102317,0.04956458,140.17,140.15,0.05177029]
[1724981102622,3.61626458,140.17,140.15,0.05177029]
[1724981103315,3.5668,140.16,140.15,0.05177029]
[1724981105215,18.9868,140.16,140.15,0.05177029]
[1724981105522,18.9868,140.16,140.08,10.96]
[1724981105523,3.5681,140.11,140.08,10.96]
[1724981106325,3.5683,140.1,140.06,10.96]
[1724981106523,0.05198313,140.09,140.07,0.05429187]
[1724981108722,3.62068313,140.09,140.07,0.05429187]
[1724981115122,3.62068313,140.09,140.07,1.32389187]
[1724981115512,0.05198313,140.09,140.08,10.96]
[1724981115718,3.5683,140.11,140.08,10.96]
[1724981116624,0.0482123,140.11,140.07,1.32389187]
[1724981117819,3.6163123,140.11,140.07,1.32389187]
[1724981118420,3.5683,140.1,140.07,1.32389187]
[1724981120626,3.6164123,140.11,140.07,1.32389187]
[1724981120924,3.6164123,140.11,140.07,2.60819187]
[1724981122621,3.5683,140.1,140.07,2.60819187]
[1724981127237,0.0482123,140.11,140.09,10.96]
[1724981127426,0.2474,140.2,140.11,14.528]
[1724981127623,15.42,140.19,140.13,10.96]
[1724981127823,3.50479575,140.18,140.13,10.96]
[1724981128028,15.42,140.19,140.13,10.96]
[1724981128029,8.0262,140.19,140.13,10.96]
[1724981128228,10.96,140.2,140.14,10.96]
[1724981128229,4.46,140.2,140.14,10.96]
[1724981128425,4.46,140.21,140.16,10.96]
[1724981128625,0.050199,140.2,140.17,0.0538506]
[1724981130431,3.615999,140.2,140.17,0.0538506]
[1724981130736,10.96,140.18,140.17,0.0538506]
[1724981131124,14.55766787,140.18,140.17,0.0538506]
[1724981132239,18.12396787,140.18,140.17,0.0538506]
[1724981134533,3.5663,140.18,140.17,0.0538506]
[1724981134836,4.84,140.19,140.17,0.0538506]
[1724981135337,0.050199,140.2,140.17,11.0138506]
[1724981135537,0.050199,140.2,140.18,10.96]
[1724981136339,0.050199,140.2,140.17,0.0538506]
[1724981136835,0.050199,140.2,140.17,11.0138506]
[1724981137040,0.050199,140.2,140.18,10.96]
[1724981141439,0.050199,140.2,140.17,0.0538506]
[1724981141644,10.96,140.19,140.17,0.0538506]
[1724981142141,0.050199,140.2,140.17,0.0538506]
[1724981142937,3.616199,140.2,140.17,0.0538506]
[1724981143940,10.96,140.19,140.17,0.0538506]
[1724981144937,3.5663,140.18,140.17,0.0538506]
[1724981146538,3.566,140.19,140.17,0.0538506]
[1724981148053,0.050199,140.2,140.17,0.0538506]
[1724981149150,0.050199,140.2,140.18,27.4]
[1724981149656,0.050199,140.2,140.18,30.9662]
[1724981150952,86.54528502,140.27,140.18,32.24]
[1724981151165,86.54528502,140.27,140.14,31.4088]
[1724981151166,86.54528502,140.27,140.22,27.4]
[1724981151357,3.5643,140.26,140.22,27.4]
[1724981151556,86.54528502,140.27,140.2,3.5656]
[1724981151557,86.54528502,140.27,140.24,27.4]
[1724981151760,0.7662,140.34,140.26,27.4]
[1724981152056,0.04551459,140.31,140.29,0.04832033]
[1724981152456,3.5632,140.3,140.29,0.04832033]
[1724981160471,0.04551459,140.31,140.29,0.04832033]
[1724981160860,4.87212949,140.36,140.3,27.4]
[1724981161066,3.5619,140.36,140.3,27.4]
[1724981161266,3.5619,140.36,140.3,28.764]
[1724981161664,3.562,140.35,140.3,28.764]
[1724981161866,0.05064692,140.34,140.31,0.04508856]
[1724981169764,3.5628,140.33,140.31,0.04508856]
[1724981170072,0.05064692,140.34,140.31,0.04508856]
[1724981170269,5.15064692,140.34,140.31,0.04508856]
[1724981170668,3.5628,140.33,140.31,0.04508856]
[1724981170868,5.15064692,140.34,140.31,0.04508856]
[1724981171772,3.563,140.33,140.31,0.04508856]
[1724981172276,5.15064692,140.34,140.31,0.04508856]
[1724981173871,8.71334692,140.34,140.31,0.04508856]
[1724981174076,5.15064692,140.34,140.31,0.04508856]
[1724981174377,3.5628,140.33,140.31,0.04508856]
[1724981174974,5.15064692,140.34,140.31,0.04508856]
[1724981175471,3.5626,140.33,140.31,0.04508856]
[1724981178074,3.5627,140.32,140.31,0.04508856]
[1724981180270,8.71304692,140.34,140.31,0.04508856]
[1724981180572,5.15064692,140.34,140.31,0.04508856]
[1724981180977,3.5627,140.32,140.31,0.04508856]
[1724981185571,3.5626,140.33,140.31,0.04508856]
[1724981185887,0.05064692,140.34,140.31,0.04508856]
[1724981186576,27.4,140.32,140.11,28.52]
[1724981186780,5.1,140.33,140.05,58.99526383]
[1724981186781,5.1,140.31,140.19,27.4]
[1724981187088,91.80466949,140.31,140.23,27.4]
[1724981187377,5.1,140.33,140.27,27.4]
[1724981187578,0.05029677,140.31,140.27,27.4]
[1724981187879,0.05029677,140.31,140.29,0.04950841]
[1724981188080,0.05029677,140.31,140.29,0.0490967]
[1724981188081,3.5632,140.3,140.29,0.0490967]
[1724981191579,3.61329677,140.31,140.29,0.0490967]
[1724981191785,0.05029677,140.31,140.29,0.0490967]
[1724981194387,3.5632,140.3,140.29,0.0490967]
[1724981194685,3.5632,140.3,140.21,1.3093]
[1724981194686,32.66,140.3,140.21,1.3093]
[1724981195086,3.5639,140.28,140.21,1.3093]
[1724981195290,32.66,140.3,140.21,1.3093]
[1724981195879,0.04845397,140.27,140.24,0.05178401]
[1724981196283,3.5645,140.25,140.24,0.05178401]
[1724981196687,12.41833624,140.25,140.24,0.05178401]
[1724981196888,8.8245,140.25,140.24,0.05178401]
[1724981197587,12.32671677,140.25,140.24,0.05178401]
[1724981197789,8.8245,140.25,140.24,0.05178401]
[1724981198794,3.5645,140.25,140.24,0.05178401]
[1724981198989,8.8245,140.25,140.24,0.05178401]
[1724981199794,3.5645,140.25,140.24,0.05178401]
[1724981200496,8.8245,140.25,140.24,0.05178401]
[1724981200691,3.5645,140.25,140.24,0.05178401]
[1724981201896,8.8245,140.25,140.24,0.05178401]
[1724981204313,3.5645,140.25,140.24,0.05178401]
[1724981204799,8.8245,140.25,140.24,0.05178401]
[1724981208907,8.8245,140.25,140.18,2.6768]
[1724981208908,3.566,140.19,140.18,1.2901]
[1724981210507,3.566,140.19,140.17,0.04860732]
[1724981210810,30.966,140.19,140.17,0.04860732]
[1724981211004,27.4,140.19,140.17,0.04860732]
[1724981211204,3.5663,140.18,140.17,0.04860732]
[1724981211410,30.9663,140.18,140.17,0.04860732]
[1724981211608,27.4,140.18,140.14,1.3093]
[1724981211814,5.26,140.17,140.14,1.3093]
[1724981212113,8.8267,140.17,140.14,1.3093]
[1724981212513,8.88143236,140.17,140.14,1.35579966]
[1724981212908,3.5669,140.16,140.14,1.35579966]
[1724981213107,27.4,140.16,140.14,0.04649966]
[1724981214109,3.567,140.15,140.14,0.04649966]
[1724981218606,30.967,140.15,140.14,0.04649966]
[1724981219512,3.5668,140.16,140.14,0.04649966]
[1724981219707,5.18,140.15,140.14,0.04649966]
[1724981220217,8.747,140.15,140.14,0.04649966]
[1724981220414,36.147,140.15,140.14,0.04649966]
[1724981220807,32.58,140.15,140.08,1.3644]
[1724981221009,27.4,140.12,140.08,1.3644]
[1724981221415,30.968,140.12,140.08,1.3644]
[1724981221810,0.04650173,140.11,140.09,0.05146034]
[1724981223621,5.18,140.1,140.09,0.05146034]
[1724981223811,36.08953551,140.1,140.0,4.0902]
[1724981224020,30.90953551,140.1,140.0,4.0902]
[1724981224215,27.4,140.06,139.96,27.4]
[1724981224415,27.4,140.06,139.99,4.0202]
[1724981224623,27.4,140.04,139.99,4.0202]
[1724981224817,0.7085,140.12,139.99,4.0202]
[1724981224818,32.62986437,140.03,140.0,0.02968508]
[1724981225121,27.45449145,140.03,140.0,0.02968508]
[1724981225317,3.5706,140.01,140.0,0.02968508]
[1724981225718,54.8,140.01,139.93,1.3457]
[1724981225920,28.54,140.03,139.93,1.3457]
[1724981226112,27.4,139.95,139.93,1.3457]
[1724981226313,5.18,139.94,139.89,1.3413]
[1724981226518,30.9724,139.95,139.89,1.3413]
[1724981226519,5.18,139.93,139.89,1.3413]
[1724981226723,0.04673992,139.92,139.89,1.3413]
[1724981228923,34.32,139.98,139.89,1.3413]
[1724981229125,5.18,139.97,139.89,1.3413]
[1724981229329,5.18,139.96,139.89,1.3413]
[1724981229519,5.18,139.95,139.89,1.3413]
[1724981229715,34.32,139.98,139.89,1.3413]
[1724981229920,5.18,139.97,139.89,1.3413]
[1724981230125,0.05255755,139.94,139.92,0.04524125]
[1724981230323,5.23255755,139.94,139.92,0.04524125]
[1724981231222,0.05255755,139.94,139.92,0.04524125]
[1724981231421,3.62495755,139.94,139.92,0.04524125]
[1724981231616,8.80495755,139.94,139.92,0.04524125]
[1724981232024,5.23255755,139.94,139.92,0.04524125]
[1724981232627,3.5719,139.96,139.92,0.04524125]
[1724981233026,8.7519,139.96,139.92,0.04524125]
[1724981233717,0.04824291,139.95,139.92,0.04524125]
[1724981236023,8.7519,139.96,139.92,0.04524125]
[1724981236024,62.86,140.0,139.92,0.04524125]
[1724981236230,5.18,139.99,139.92,1.31894125]
[1724981236526,5.18,139.99,139.92,4.89164125]
[1724981236527,8.7513,139.99,139.92,4.89164125]
[1724981236719,3.5713,139.99,139.92,4.89164125]
[1724981236916,3.59529593,140.04,139.92,4.96503529]
[1724981236917,34.32,140.02,139.92,4.96503529]
[1724981237122,0.05457756,139.98,139.96,0.04514623]
[1724981238728,34.32,140.02,139.96,0.04514623]
[1724981239026,5.18,140.01,139.96,0.04514623]
[1724981239432,8.7508,140.01,139.96,0.04514623]
[1724981239628,34.32,140.02,139.96,0.04514623]
[1724981239830,0.04805861,140.0,139.96,0.04514623]
[1724981240028,3.5712,139.99,139.96,0.04514623]
[1724981240228,5.2,139.99,139.96,0.04514623]
[1724981240630,8.7711,139.99,139.96,0.04514623]
[1724981240929,3.5711,139.99,139.96,0.04514623]
[1724981241335,8.7711,139.99,139.96,0.04514623]
[1724981241629,5.2,139.99,139.96,0.04514623]
[1724981242323,34.32,139.98,139.96,0.04514623]
[1724981242739,34.32,139.98,139.92,1.2737]
[1724981243036,34.32,139.95,139.92,1.2737]
[1724981243227,5.2,139.94,139.92,1.2737]
[1724981243735,5.24815322,139.94,139.92,1.32326206]
[1724981245834,8.82055322,139.94,139.92,1.32326206]
[1724981246031,5.24815322,139.94,139.92,1.32326206]
[1724981246635,0.04815322,139.94,139.92,1.32326206]
[1724981247434,3.62055322,139.94,139.92,1.32326206]
[1724981248344,8.92055322,139.94,139.92,1.32326206]
[1724981248830,3.62055322,139.94,139.92,1.32326206]
[1724981249035,8.92055322,139.94,139.92,1.32326206]
[1724981249233,3.5726,139.93,139.92,0.04956206]
[1724981252045,8.92065322,139.94,139.92,0.04956206]
[1724981253145,3.62065322,139.94,139.92,0.04956206]
[1724981255247,8.92065322,139.94,139.92,0.04956206]
[1724981255639,3.62065322,139.94,139.92,0.04956206]
[1724981255842,8.92065322,139.94,139.92,0.04956206]
[1724981256645,27.43,139.93,139.87,1.3206]
[1724981256946,27.43,139.89,139.85,1.2998]
[1724981257141,3.5741,139.88,139.85,1.2998]
[1724981257337,3.5741,139.88,139.78,32.73]
[1724981257338,27.43,139.87,139.82,1.2707]
[1724981257850,0.04557419,139.86,139.83,0.05187408]
[1724981259339,3.62017419,139.86,139.83,0.05187408]
[1724981259542,0.04557419,139.86,139.83,0.05187408]
[1724981261446,3.5748,139.85,139.83,0.05187408]
[1724981261656,0.04557419,139.86,139.83,0.05187408]
[1724981262151,3.5747,139.85,139.83,0.05187408]
[1724981262342,27.43,139.85,139.83,0.05187408]
[1724981262539,0.04557419,139.86,139.83,0.05187408]
[1724981262742,27.43,139.84,139.73,4.0581]
[1724981262951,27.43,139.79,139.73,4.0581]
[1724981263549,27.43,139.81,139.73,4.0581]
[1724981263850,0.0462987,139.77,139.75,0.04744854]
[1724981266043,35.2789,139.87,139.75,34.40744854]
[1724981266044,5.3,139.83,139.75,34.40744854]
[1724981266252,34.36,139.86,139.75,34.36]
[1724981266253,5.3,139.84,139.75,34.36]
[1724981266452,8.8754,139.83,139.76,3.577]
[1724981266757,5.3,139.85,139.78,34.36]
[1724981266960,34.36,139.88,139.79,2.6572]
[1724981267155,0.05087113,139.83,139.8,0.04616409]
[1724981270247,5.3,139.87,139.8,0.04616409]
[1724981270447,3.5744,139.87,139.79,37.0172]
[1724981270652,3.5744,139.87,139.81,3.5757]
[1724981270851,34.36,139.92,139.81,34.36]
[1724981271058,3.574,139.88,139.81,34.36]
[1724981271362,0.04530916,139.86,139.83,0.04786134]
[1724981272853,0.04530916,139.86,139.83,3.62286134]
[1724981273153,0.04530916,139.86,139.83,0.04786134]
[1724981273357,34.40530916,139.86,139.83,0.04786134]
[1724981273564,39.70530916,139.86,139.83,0.04786134]
[1724981273859,3.5747,139.85,139.83,0.04786134]
[1724981274252,8.91980916,139.86,139.83,0.04786134]
[1724981274448,0.04530916,139.86,139.83,0.04786134]
[1724981276457,3.5747,139.85,139.83,0.04786134]
[1724981276761,0.04530916,139.86,139.83,0.04786134]
[1724981277559,3.61980916,139.86,139.83,0.04786134]
[1724981279459,0.04530916,139.86,139.83,0.04786134]
[1724981281059,0.04530916,139.86,139.83,3.62286134]
[1724981282560,0.04530916,139.86,139.84,3.5749]
[1724981283265,0.04530916,139.86,139.83,3.62296134]
[1724981285463,0.04530916,139.86,139.84,3.5749]
[1724981285767,0.04530916,139.86,139.83,0.04786134]
[1724981285967,0.04530916,139.86,139.83,3.62286134]
[1724981287476,0.04530916,139.86,139.84,3.5749]
[1724981288773,0.04530916,139.86,139.83,0.04786134]
[1724981289966,0.04530916,139.86,139.83,3.62296134]
[1724981290170,27.45,139.95,139.85,27.45]
[1724981290366,27.45,139.93,139.85,27.45]
[1724981290572,3.5734,139.9,139.85,31.0246]
[1724981290768,27.45,139.93,139.84,3.53139285]
[1724981290973,3.53889961,139.92,139.83,27.45]
[1724981291274,0.05023792,139.89,139.86,0.04533916]
[1724981291676,3.5739,139.88,139.86,0.04533916]
[1724981294368,0.05023792,139.89,139.86,0.04533916]
[1724981295881,3.62403792,139.89,139.86,0.04533916]
[1724981296786,0.05023792,139.89,139.86,0.04533916]
[1724981299379,3.574,139.88,139.86,0.04533916]
[1724981299585,0.05023792,139.89,139.86,0.04533916]
[1724981299785,3.62403792,139.89,139.86,0.04533916]
[1724981302383,3.574,139.88,139.86,0.04533916]
[1724981306780,3.62393792,139.89,139.86,0.04533916]
[1724981308383,0.05023792,139.89,139.86,0.04533916]
[1724981309391,0.05023792,139.89,139.86,2.65103916]
[1724981309783,0.05023792,139.89,139.88,3.5739]
[1724981309982,0.05023792,139.89,139.86,2.65103916]
[1724981310900,0.05023792,139.89,139.88,3.5739]
[1724981315698,0.05023792,139.89,139.86,11.22533916]
[1724981315895,0.05023792,139.89,139.86,0.04533916]
[1724981316397,5.05023792,139.89,139.86,0.04533916]
[1724981317499,3.5741,139.88,139.86,0.04533916]
[1724981318202,5.05023792,139.89,139.86,0.04533916]
[1724981318798,3.574,139.88,139.86,0.04533916]
[1724981322008,3.5742,139.87,139.86,0.04533916]
[1724981322190,27.45,139.87,139.78,1.3736]
[1724981322391,27.45,139.85,139.74,2.6465]
[1724981322601,27.45,139.87,139.74,7.6465]
[1724981322602,27.45,139.83,139.74,7.6465]
[1724981322903,3.5759,139.81,139.75,3.5772]
[1724981323099,32.45,139.83,139.74,7.6465]
[1724981323305,0.0533048,139.8,139.77,0.04782921]
[1724981323797,0.0533048,139.8,139.77,27.49782921]
[1724981324199,0.0533048,139.8,139.77,0.04782921]
[1724981324796,3.5765,139.79,139.77,0.04782921]
[1724981325003,0.0533048,139.8,139.77,0.04782921]
[1724981326100,0.0533048,139.8,139.77,3.54890968]
[1724981326700,0.0533048,139.8,139.78,3.5763]
[1724981327303,0.0533048,139.8,139.77,3.54890968]
[1724981327304,0.0533048,139.8,139.77,7.12550968]
[1724981327995,3.5755,139.82,139.77,7.12550968]
[1724981327996,0.9595,139.89,139.78,27.45]
[1724981328196,28.4095,139.89,139.78,27.45]
[1724981328395,31.97434014,139.89,139.8,27.45]
[1724981328599,27.45,139.85,139.75,27.45]
[1724981328894,5.0,139.86,139.78,27.45]
[1724981329198,0.04767249,139.83,139.8,3.576]
[1724981329605,0.04767249,139.83,139.8,4.8593]
[1724981329995,0.04767249,139.83,139.8,6.1716]
[1724981330504,0.04767249,139.83,139.81,3.5757]
[1724981330802,0.04767249,139.83,139.8,30.0456]
[1724981331196,0.04767249,139.83,139.8,2.5956]
[1724981333302,0.04767249,139.83,139.81,3.5757]
[1724981333507,0.04767249,139.83,139.8,2.5956]
[1724981333809,0.04767249,139.83,139.8,1.2833]
[1724981334497,3.62287249,139.83,139.8,1.2833]
[1724981334697,0.04767249,139.83,139.8,1.2833]
[1724981334912,3.5756,139.82,139.79,0.0455035]
[1724981335607,3.5758,139.81,139.79,0.0455035]
[1724981336397,3.576,139.8,139.79,0.0455035]
[1724981341006,31.026,139.8,139.79,0.0455035]
[1724981341602,36.186,139.8,139.79,0.0455035]
[1724981341903,3.5766,139.78,139.72,3.5778]
[1724981342214,27.45,139.79,139.71,2.6724]
[1724981342709,5.16,139.8,139.74,0.04974376]
[1724981342710,0.04798511,139.76,139.74,0.04974376]
[1724981345911,0.04798511,139.76,139.74,27.49974376]
[1724981346105,27.45,139.83,139.74,27.49974376]
[1724981346406,27.45,139.83,139.74,27.45]
[1724981346808,5.16,139.82,139.74,27.45]
[1724981347011,27.45,139.83,139.74,27.45]
[1724981347211,0.04782646,139.8,139.77,0.04916293]
[1724981347709,0.04782646,139.8,139.78,27.45]
[1724981347906,0.04782646,139.8,139.78,28.8474]
[1724981348107,0.04782646,139.8,139.78,1.3974]
[1724981349110,0.04782646,139.8,139.79,3.5762]
[1724981349313,0.04782646,139.8,139.78,1.3974]
[1724981349711,0.04782646,139.8,139.78,4.9737]
[1724981349918,0.04782646,139.8,139.78,1.3974]
[1724981350313,0.04782646,139.8,139.78,4.9738]
[1724981351013,0.04782646,139.8,139.79,3.5762]
[1724981351907,3.575,139.84,139.79,3.5762]
[1724981352618,32.61,139.87,139.8,3.5759]
[1724981352813,0.04803391,139.85,139.82,0.05140268]
[1724981353316,0.04803391,139.85,139.82,3.62670268]
[1724981357621,0.04803391,139.85,139.83,3.5751]
[1724981358225,0.04803391,139.85,139.84,3.5749]
[1724981358422,27.9674,139.93,139.84,27.45]
[1724981358618,27.45,139.93,139.84,27.45]
[1724981358821,27.45,139.93,139.85,2.6455]
[1724981359025,89.24647136,139.9,139.85,6.2202]
[1724981359327,0.04634063,139.89,139.86,0.04540024]
[1724981360317,3.62004063,139.89,139.86,0.04540024]
[1724981362022,0.04634063,139.89,139.86,0.04540024]
[1724981362720,3.5742,139.87,139.86,0.04540024]
[1724981363225,3.5741,139.88,139.86,0.04540024]
[1724981365521,3.62004063,139.89,139.86,0.04540024]
[1724981367326,3.5739,139.88,139.86,0.04540024]
[1724981371643,0.04634063,139.89,139.86,0.04540024]
[1724981371840,0.04634063,139.89,139.86,27.49540024]
[1724981372036,0.04634063,139.89,139.88,10.99]
[1724981374153,0.04634063,139.89,139.86,30.14490024]
[1724981374544,0.04634063,139.89,139.86,2.68490024]
[1724981374849,0.04634063,139.89,139.86,1.34620024]
[1724981375351,0.04634063,139.89,139.86,0.04540024]
[1724981376454,3.5741,139.88,139.86,0.04540024]
[1724981376654,0.04634063,139.89,139.86,0.04540024]
[1724981376850,3.62024063,139.89,139.86,0.04540024]
[1724981379558,0.04634063,139.89,139.86,0.04540024]
[1724981380359,0.04634063,139.89,139.86,3.61970024]
[1724981380744,0.04634063,139.89,139.86,0.04540024]
[1724981384761,3.62004063,139.89,139.86,0.04540024]
[1724981386359,0.04634063,139.89,139.87,27.46]
[1724981386562,0.04634063,139.89,139.86,0.04540024]
[1724981388356,0.04634063,139.89,139.86,27.50540024]
[1724981388657,0.04634063,139.89,139.86,28.82620024]
[1724981389152,0.04634063,139.89,139.87,3.5742]
[1724981390461,0.04634063,139.89,139.88,3.5739]
[1724981391156,0.04634063,139.89,139.86,2.71320024]
[1724981391157,0.04634063,139.89,139.86,4.94040024]
[1724981391556,0.04634063,139.89,139.86,1.36620024]
[1724981391957,0.04634063,139.89,139.87,3.5741]
[1724981392661,0.04634063,139.89,139.86,4.94050024]
[1724981395960,0.04634063,139.89,139.87,10.97]
[1724981396159,0.04634063,139.89,139.87,14.5441]
[1724981399368,0.04634063,139.89,139.86,0.04540024]
[1724981399664,15.93634063,139.89,139.86,0.04540024]
[1724981400471,8.54014063,139.89,139.86,0.04540024]
[1724981400972,3.574,139.88,139.86,0.04540024]
[1724981401471,8.54014063,139.89,139.86,0.04540024]
[1724981401863,3.62014063,139.89,139.86,0.04540024]
[1724981402473,3.574,139.88,139.86,0.04540024]
[1724981402679,0.04634063,139.89,139.86,0.04540024]
[1724981403568,3.574,139.88,139.86,0.04540024]
[1724981404266,3.5742,139.87,139.86,0.04540024]
[1724981405168,3.5739,139.88,139.86,0.04540024]
[1724981405776,3.5742,139.87,139.86,0.04540024]
[1724981406978,3.574,139.88,139.86,0.04540024]
[1724981407575,3.5742,139.87,139.86,0.04540024]
[1724981410774,8.4942,139.87,139.86,0.04540024]
[1724981411478,3.5742,139.87,139.86,0.04540024]
[1724981411670,8.4942,139.87,139.86,0.04540024]
[1724981412268,3.5742,139.87,139.86,0.04540024]
[1724981412673,8.4942,139.87,139.86,0.04540024]
[1724981412876,3.5742,139.87,139.86,0.04540024]
[1724981413071,3.5751,139.84,139.79,3.5762]